fUSD/lending_fUSD_20250524
["ID","MTS","AMOUNT","RATE_DAILY","PERIOD"]
[362265287,1748128251150,-1857.13000001,0.00019808,2]
[362265288,1748128251160,-442.04,0.00019808,2]
[362265289,1748128251170,-1098.5508273,0.00019808,2]
[362265290,1748128251179,-985.31,0.00019808,2]
[362265291,1748128251189,-3151.80096604,0.00019808,2]
[362265292,1748128251199,-555.87,0.00019808,2]
[362265293,1748128251209,-1907.43,0.00019808,2]
[362265294,1748128251218,-1270.5,0.00019808,2]
[362265295,1748128251228,-500.92,0.00019808,2]
[362265296,1748128251238,-564.33,0.00019808,2]
[362265297,1748128251248,-1497.81,0.00019808,2]
[362265298,1748128251257,-822.31,0.00019808,2]
[362265299,1748128251267,-2131.98,0.00019808,2]
[362265300,1748128251276,-1551.87,0.00019808,2]
[362265301,1748128251286,-721.83,0.00019808,2]
[362265302,1748128251295,-1432.68209154,0.00019809,2]
[362265303,1748128251305,-24667.16145272,0.0001981,2]
[362265304,1748128251314,-1359.203,0.00019811,2]
[362265305,1748128251324,-2095.72707714,0.00019812,2]
[362265306,1748128251333,-1000.0,0.00019821,2]
[362265307,1748128251344,-500.0,0.00019821,2]
[362265308,1748128251353,-200.0,0.0001984,2]
[362265309,1748128251362,-235.7926232,0.00019896,2]
[362265310,1748128251372,-235.79262319,0.00019897,2]
[362265311,1748128251381,-235.79262319,0.00019897,2]
[362265312,1748128251391,-235.79262319,0.00019898,2]
[362265313,1748128251400,-235.79262319,0.00019899,2]
[362265314,1748128251409,-235.79262319,0.00019899,2]
[362265315,1748128251419,-1741.254,0.000199,2]
[362265316,1748128251429,-230.3323,0.000199,2]
[362265317,1748128251438,-235.79262319,0.000199,2]
[362265318,1748128251448,-168.82523799,0.000199,2]
[362265319,1748128251457,-1432.68209154,0.000199,2]
[362265320,1748128251467,-1000.0,0.000199,2]
[362265321,1748128251477,-1062.62202568,0.000199,2]
[362265322,1748128251486,-2095.72707714,0.000199,2]
[362265323,1748128251496,-503.28319543,0.00019921,2]
[362265324,1748128251505,-1143.59794869,0.00019921,2]
[362265325,1748128251515,-1000.0,0.00019921,2]
[362265326,1748128251525,-563.81431601,0.00019921,2]
[362265327,1748128251534,-424.58205481,0.0001999,2]
[362265328,1748128251544,-424.58205481,0.0001999,2]
[362265329,1748128251553,-1968.8718528,0.00019996,2]
[362265330,1748128251562,-3850.4457203,0.00019996,2]
[362265331,1748128251574,-1956.4615185,0.00019996,2]
[362265332,1748128251584,-219.6746804,0.00019996,2]
[362265333,1748128251593,-27903.3537105,0.00019996,2]
[362265334,1748128251603,-151.0,0.00019996,2]
[362265335,1748128251612,-263.66,0.00019999,2]
[362265336,1748128251625,-500.0,0.00019999,2]
[362265337,1748128251635,-500.0,0.00019999,2]
[362265338,1748128251644,-500.0,0.00019999,2]
[362265339,1748128251654,-500.0,0.00019999,2]
[362265340,1748128251664,-500.0,0.00019999,2]
[362265341,1748128251675,-500.0,0.00019999,2]
[362265342,1748128251685,-500.0,0.00019999,2]
[362265343,1748128251694,-500.0,0.00019999,2]
[362265344,1748128251704,-423.67,0.00019999,2]
[362265345,1748128251713,-193.9605506,0.0002,2]
[362265346,1748128251723,-342902.09858243,0.0002,2]
[362265347,1748128251732,-1594106.76388685,0.0002,2]
[362265348,1748128251760,-466.41,0.00019616,2]
[362265349,1748128251770,-1565.18953146,0.0002,2]
[362265350,1748128251781,-2514.89999996,0.0002,2]
[362265351,1748128251928,376.63,0.00013699,2]
[362265352,1748128251948,-466.41,0.00019643,2]
[362265353,1748128251965,-466.41,0.00019671,2]
[362265354,1748128251976,-227.18,0.00019698,2]
[362265355,1748128252192,-196.93143404,0.00019132,2]
[362265356,1748128252204,-420.0,0.00019178,2]
[362265357,1748128252215,-188.56708451,0.00019698,2]
[362265358,1748128252238,-50.66291549,0.00019698,2]
[362265359,1748128252249,-466.41,0.00019726,2]
[362265360,1748128252260,-466.41,0.00019753,2]
[362265361,1748128252274,-429.94153492,0.0001978,2]
[362265362,1748128252289,-36.46846508,0.0001978,2]
[362265363,1748128252300,-466.44,0.00019808,2]
[362265364,1748128252311,-559.55353466,0.0002,2]
[362265365,1748128252325,-10692.0343376,0.0002,2]
[362265366,1748128252337,-1137.5,0.0002,2]
[362265367,1748128252356,-195.24,0.00019205,2]
[362265368,1748128252367,-2212.84174662,0.0002,2]
[362265369,1748128252386,-262.0042956,0.0002,2]
[362265370,1748128252399,-1226.49,0.0002,2]
[362265371,1748128252416,-2406.84841981,0.0002,2]
[362265372,1748128252429,-650.37598901,0.0002,2]
[362265373,1748128328010,113.37,7.945e-05,2]
[362265374,1748128328033,94.492085,7.945e-05,2]
[362265375,1748128355204,530.33,0.00017078,2]
[362265376,1748128791739,-214.3,0.00018229,2]
[362265377,1748128791761,-35.7,0.00018356,2]
[362265378,1748128825087,4000.0,0.00023,30]
[362265379,1748129159307,-150.0,0.00018266,7]
[362265380,1748129159328,-198.08,0.00018328,2]
[362265381,1748129159349,-199.11846464,0.00018328,2]
[362265382,1748129166876,-364.256013,0.00018328,2]
[362265383,1748129196784,-420.0,0.00018328,2]
[362265384,1748129198216,-16.62552236,0.00018328,2]
[362265385,1748129198240,-337.50153788,0.00018356,2]
[362265386,1748129232088,-364.256013,0.00018264,2]
[362265387,1748129232108,-434.99688152,0.00018356,2]
[362265388,1748129317257,-194.27122605,0.00018271,2]
[362265389,1748129344765,250.0,0.00015,2]
[362265390,1748129345871,300.0,0.00017,2]
[362265391,1748129346711,-8.36877395,0.00018271,2]
[362265392,1748129346737,-150.11503062,0.00018356,2]
[362265394,1748129417126,357.79,0.00013699,2]
[362265397,1748129431841,-259.86654998,0.00018356,2]
[362265398,1748129431851,-169.18962026,0.0001861,2]
[362265414,1748129437726,-130.81037974,0.0001861,2]
[362265415,1748129437736,-5738.79627056,0.00018611,2]
[362265416,1748129437747,-18748.01372944,0.00018611,2]
[362265417,1748129437756,-350.0,0.00019,2]
[362265418,1748129437765,-500.0,0.00019078,2]
[362265419,1748129437775,-8477.5382,0.00019078,2]
[362265420,1748129437784,-1000.0,0.00019078,2]
[362265421,1748129437793,-3942.864,0.00019078,2]
[362265422,1748129437803,-270.9916,0.00019078,2]
[362265423,1748129437813,-1508.4218,0.00019078,2]
[362265424,1748129437822,-1000.0,0.00019115,2]
[362265425,1748129437831,-2500.0,0.00019115,2]
[362265426,1748129437841,-500.0,0.00019123,2]
[362265427,1748129437851,-170.66988584,0.0001916,2]
[362265428,1748129437861,-151.0,0.00019166,2]
[362265429,1748129437870,-429.05617024,0.00019166,2]
[362265430,1748129437879,-693.3919763,0.00019166,2]
[362265431,1748129437891,-207.4,0.00019166,2]
[362265432,1748129437900,-566.44034201,0.00019177,2]
[362265433,1748129437909,-354.12706024,0.00019177,2]
[362265434,1748129437918,-420.0,0.00019178,2]
[362265435,1748129437927,-420.0,0.00019178,2]
[362265436,1748129437936,-420.0,0.00019178,2]
[362265437,1748129437945,-420.0,0.00019178,2]
[362265438,1748129437954,-322.1940437,0.00019178,2]
[362265439,1748129437963,-420.0,0.00019178,2]
[362265440,1748129437974,-420.0,0.00019178,2]
[362265441,1748129437983,-174.83745971,0.00019178,2]
[362265442,1748129437992,-420.0,0.00019178,2]
[362265443,1748129438001,-420.0,0.00019178,2]
[362265444,1748129438010,-420.0,0.00019178,2]
[362265445,1748129438020,-420.0,0.00019178,2]
[362265447,1748129438029,-420.0,0.00019178,2]
[362265448,1748129438038,-420.0,0.00019178,2]
[362265450,1748129438047,-420.0,0.00019178,2]
[362265452,1748129438056,-420.0,0.00019178,2]
[362265454,1748129438066,-420.0,0.00019178,2]
[362265456,1748129438075,-420.0,0.00019178,2]
[362265457,1748129438084,-420.0,0.00019178,2]
[362265458,1748129438093,-31400.36,0.00019178,2]
[362265459,1748129438103,-420.0,0.00019178,2]
[362265460,1748129438112,-420.0,0.00019178,2]
[362265461,1748129438120,-420.0,0.00019178,2]
[362265462,1748129438130,-420.0,0.00019178,2]
[362265464,1748129438139,-420.0,0.00019178,2]
[362265466,1748129438148,-420.0,0.00019178,2]
[362265468,1748129438157,-420.0,0.00019178,2]
[362265470,1748129438166,-420.0,0.00019178,2]
[362265472,1748129438175,-420.0,0.00019178,2]
[362265474,1748129438184,-420.0,0.00019178,2]
[362265476,1748129438193,-420.0,0.00019178,2]
[362265478,1748129438202,-420.0,0.00019178,2]
[362265480,1748129438211,-873.19,0.00019178,2]
[362265482,1748129438220,-420.0,0.00019178,2]
[362265484,1748129438229,-420.0,0.00019178,2]
[362265486,1748129438238,-420.0,0.00019178,2]
[362265488,1748129438248,-420.0,0.00019178,2]
[362265490,1748129438257,-420.0,0.00019178,2]
[362265492,1748129438267,-420.0,0.00019178,2]
[362265493,1748129438276,-420.0,0.00019178,2]
[362265494,1748129438285,-420.0,0.00019178,2]
[362265495,1748129438294,-481.4139091,0.00019178,2]
[362265496,1748129438303,-979.2,0.00019178,2]
[362265497,1748129438313,-422.96,0.00019178,2]
[362265498,1748129438322,-420.0,0.00019178,2]
[362265499,1748129438331,-420.0,0.00019178,2]
[362265500,1748129438340,-420.0,0.00019178,2]
[362265501,1748129438350,-420.0,0.00019178,2]
[362265502,1748129438359,-420.0,0.00019178,2]
[362265503,1748129438368,-420.0,0.00019178,2]
[362265504,1748129438377,-420.0,0.00019178,2]
[362265505,1748129438386,-420.0,0.00019178,2]
[362265506,1748129438395,-484.49,0.00019178,2]
[362265507,1748129438404,-420.0,0.00019178,2]
[362265508,1748129438414,-420.0,0.00019178,2]
[362265509,1748129438423,-420.0,0.00019178,2]
[362265510,1748129438432,-420.0,0.00019178,2]
[362265511,1748129438441,-420.0,0.00019178,2]
[362265512,1748129438451,-420.0,0.00019178,2]
[362265513,1748129438460,-420.0,0.00019178,2]
[362265514,1748129438470,-420.0,0.00019178,2]
[362265515,1748129438479,-420.0,0.00019178,2]
[362265516,1748129438488,-541.40274578,0.00019178,2]
[362265517,1748129438498,-2495.14,0.00019178,2]
[362265518,1748129438507,-420.0,0.00019178,2]
[362265519,1748129438516,-380.89891487,0.00019178,2]
[362265520,1748129438525,-1509.89,0.00019178,2]
[362265521,1748129438535,-420.0,0.00019178,2]
[362265522,1748129438544,-420.0,0.00019178,2]
[362265523,1748129438553,-420.0,0.00019178,2]
[362265524,1748129438563,-420.0,0.00019178,2]
[362265525,1748129438572,-420.0,0.00019178,2]
[362265526,1748129438581,-813.08,0.00019178,2]
[362265527,1748129438590,-420.0,0.00019178,2]
[362265528,1748129438599,-1005.79,0.00019178,2]
[362265529,1748129438608,-466.87749439,0.00019178,2]
[362265530,1748129438617,-420.0,0.00019178,2]
[362265531,1748129438627,-420.0,0.00019178,2]
[362265532,1748129438635,-420.0,0.00019178,2]
[362265533,1748129438644,-420.0,0.00019178,2]
[362265534,1748129438654,-420.0,0.00019178,2]
[362265535,1748129438663,-420.0,0.00019178,2]
[362265536,1748129438672,-420.0,0.00019178,2]
[362265537,1748129438681,-1228.51,0.00019178,2]
[362265538,1748129438690,-696.33,0.00019178,2]
[362265539,1748129438699,-715.94,0.00019178,2]
[362265540,1748129438708,-420.0,0.00019178,2]
[362265541,1748129438718,-420.0,0.00019178,2]
[362265542,1748129438727,-420.0,0.00019178,2]
[362265543,1748129438736,-1306.55,0.00019178,2]
[362265544,1748129438746,-420.0,0.00019178,2]
[362265545,1748129438755,-420.0,0.00019178,2]
[362265546,1748129438764,-420.0,0.00019178,2]
[362265547,1748129438773,-201.872318,0.00019178,2]
[362265548,1748129438782,-420.0,0.00019178,2]
[362265549,1748129438794,-176.9,0.00019178,2]
[362265550,1748129438803,-2409.8,0.00019178,2]
[362265551,1748129438812,-484.45387155,0.00019178,2]
[362265552,1748129438821,-420.0,0.00019178,2]
[362265553,1748129438830,-420.0,0.00019178,2]
[362265554,1748129438839,-153.59847359,0.00019178,2]
[362265555,1748129438848,-1586.35,0.00019178,2]
[362265556,1748129438858,-420.0,0.00019178,2]
[362265557,1748129438868,-299.99,0.00019187,4]
[362265558,1748129438877,-6689.4,0.00019187,2]
[362265559,1748129438890,-919.11,0.00019187,2]
[362265560,1748129438899,-9999.99,0.00019187,2]
[362265561,1748129439130,-150.99,0.00019187,2]
[362265562,1748129439149,-7228.17,0.00019187,2]
[362265563,1748129439158,-2696.94239328,0.00019187,2]
[362265564,1748129439167,-1741.254,0.00019187,2]
[362265565,1748129439176,-246.22734926,0.00019204,2]
[362265566,1748129439186,-466.04,0.00019205,2]
[362265567,1748129439194,-420.0,0.00019205,2]
[362265568,1748129439203,-420.0,0.00019205,2]
[362265569,1748129439213,-420.0,0.00019205,2]
[362265570,1748129439222,-31400.36,0.00019205,2]
[362265571,1748129439231,-420.0,0.00019205,2]
[362265572,1748129439240,-294.33088648,0.00019205,2]
[362265573,1748129439250,-420.0,0.00019205,2]
[362265574,1748129439259,-420.0,0.00019205,2]
[362265575,1748129439268,-420.0,0.00019205,2]
[362265576,1748129439277,-420.0,0.00019205,2]
[362265577,1748129439287,-420.0,0.00019205,2]
[362265578,1748129439296,-420.0,0.00019205,2]
[362265579,1748129439305,-873.19,0.00019205,2]
[362265580,1748129439314,-420.0,0.00019205,2]
[362265581,1748129439324,-420.0,0.00019205,2]
[362265582,1748129439333,-420.0,0.00019205,2]
[362265583,1748129439342,-420.0,0.00019205,2]
[362265584,1748129439352,-979.2,0.00019205,2]
[362265585,1748129439361,-422.96,0.00019205,2]
[362265586,1748129439371,-420.0,0.00019205,2]
[362265587,1748129439380,-420.0,0.00019205,2]
[362265588,1748129439389,-420.0,0.00019205,2]
[362265589,1748129439399,-420.0,0.00019205,2]
[362265590,1748129439409,-420.0,0.00019205,2]
[362265591,1748129439418,-420.0,0.00019205,2]
[362265592,1748129439427,-484.49,0.00019205,2]
[362265593,1748129439437,-420.0,0.00019205,2]
[362265594,1748129439446,-420.0,0.00019205,2]
[362265595,1748129439455,-420.0,0.00019205,2]
[362265596,1748129439465,-420.0,0.00019205,2]
[362265597,1748129439475,-420.0,0.00019205,2]
[362265598,1748129439484,-2495.14,0.00019205,2]
[362265599,1748129439493,-420.0,0.00019205,2]
[362265600,1748129439503,-1509.89,0.00019205,2]
[362265601,1748129439512,-420.0,0.00019205,2]
[362265602,1748129439522,-420.0,0.00019205,2]
[362265603,1748129439531,-420.0,0.00019205,2]
[362265604,1748129439540,-420.0,0.00019205,2]
[362265605,1748129439550,-813.08,0.00019205,2]
[362265606,1748129439560,-1005.79,0.00019205,2]
[362265607,1748129439570,-420.0,0.00019205,2]
[362265608,1748129439580,-420.0,0.00019205,2]
[362265609,1748129439589,-420.0,0.00019205,2]
[362265610,1748129439599,-420.0,0.00019205,2]
[362265611,1748129439609,-1228.51,0.00019205,2]
[362265612,1748129439619,-696.33,0.00019205,2]
[362265613,1748129439628,-715.94,0.00019205,2]
[362265614,1748129439637,-420.0,0.00019205,2]
[362265615,1748129439647,-420.0,0.00019205,2]
[362265616,1748129439656,-1306.55,0.00019205,2]
[362265617,1748129439667,-420.0,0.00019205,2]
[362265618,1748129439677,-420.0,0.00019205,2]
[362265619,1748129439686,-420.0,0.00019205,2]
[362265620,1748129439696,-2409.8,0.00019205,2]
[362265621,1748129439705,-420.0,0.00019205,2]
[362265622,1748129439716,-1586.35,0.00019205,2]
[362265623,1748129439725,-420.0,0.00019205,2]
[362265625,1748129439736,-307.16929197,0.00019213,2]
[362265627,1748129439745,-196.93143404,0.00019215,2]
[362265629,1748129439755,-420.0,0.00019232,2]
[362265630,1748129439765,-420.0,0.00019232,2]
[362265631,1748129439775,-420.0,0.00019232,2]
[362265632,1748129439784,-31400.36,0.00019232,2]
[362265633,1748129439794,-420.0,0.00019232,2]
[362265634,1748129439803,-420.0,0.00019232,2]
[362265635,1748129439813,-420.0,0.00019232,2]
[362265636,1748129439822,-420.0,0.00019232,2]
[362265637,1748129439832,-420.0,0.00019232,2]
[362265638,1748129439842,-420.0,0.00019232,2]
[362265639,1748129439852,-420.0,0.00019232,2]
[362265640,1748129439862,-873.19,0.00019232,2]
[362265641,1748129439871,-420.0,0.00019232,2]
[362265642,1748129439881,-420.0,0.00019232,2]
[362265643,1748129439895,-420.0,0.00019232,2]
[362265644,1748129439906,-420.0,0.00019232,2]
[362265645,1748129439915,-979.2,0.00019232,2]
[362265646,1748129439924,-422.96,0.00019232,2]
[362265647,1748129439934,-420.0,0.00019232,2]
[362265648,1748129439943,-420.0,0.00019232,2]
[362265649,1748129439952,-420.0,0.00019232,2]
[362265650,1748129439962,-420.0,0.00019232,2]
[362265651,1748129439974,-420.0,0.00019232,2]
[362265652,1748129439983,-484.49,0.00019232,2]
[362265653,1748129439994,-420.0,0.00019232,2]
[362265654,1748129440003,-418.6,0.00019232,2]
[362265655,1748129440013,-420.0,0.00019232,2]
[362265656,1748129440023,-420.0,0.00019232,2]
[362265657,1748129440032,-2495.14,0.00019232,2]
[362265658,1748129440042,-420.0,0.00019232,2]
[362265659,1748129440051,-1509.89,0.00019232,2]
[362265660,1748129440061,-420.0,0.00019232,2]
[362265661,1748129440070,-169.14,0.00019232,2]
[362265662,1748129440080,-420.0,0.00019232,2]
[362265663,1748129440090,-420.0,0.00019232,2]
[362265664,1748129440099,-813.08,0.00019232,2]
[362265665,1748129440109,-1005.79,0.00019232,2]
[362265666,1748129440118,-564.93614845,0.00019232,2]
[362265667,1748129440128,-420.0,0.00019232,2]
[362265668,1748129440137,-420.0,0.00019232,2]
[362265669,1748129440147,-420.0,0.00019232,2]
[362265670,1748129440156,-696.33,0.00019232,2]
[362265671,1748129440165,-1228.51,0.00019232,2]
[362265672,1748129440175,-715.94,0.00019232,2]
[362265673,1748129440184,-420.0,0.00019232,2]
[362265674,1748129440193,-420.0,0.00019232,2]
[362265675,1748129440203,-1306.55,0.00019232,2]
[362265676,1748129440212,-420.0,0.00019232,2]
[362265677,1748129440224,-420.0,0.00019232,2]
[362265678,1748129440233,-201.872318,0.00019232,2]
[362265679,1748129440242,-2409.8,0.00019232,2]
[362265680,1748129440252,-420.0,0.00019232,2]
[362265681,1748129440261,-1586.35,0.00019232,2]
[362265682,1748129440271,-420.0,0.00019232,2]
[362265683,1748129440280,-500.0,0.00019233,2]
[362265684,1748129440290,-420.0,0.0001926,2]
[362265685,1748129440299,-420.0,0.0001926,2]
[362265686,1748129440308,-420.0,0.0001926,2]
[362265687,1748129440318,-9646.69616541,0.0001926,2]
[362265688,1748129440341,-3468.47713299,0.0001926,2]
[362265689,1748129440357,-1414.48647876,0.0001926,2]
[362265690,1748129440459,-411.0,0.00019105,2]
[362265691,1748129440611,-0.02100602,0.00019105,2]
[362265692,1748129440622,-1803.66357558,0.00019105,2]
[362265693,1748129440633,-285.3154184,0.00019105,2]
[362265694,1748129440642,-420.0,0.00019178,2]
[362265695,1748129440652,-420.0,0.00019205,2]
[362265696,1748129440661,-276.2845816,0.00019232,2]
[362265697,1748129440679,-204.75126847,0.00019232,2]
[362265698,1748129440688,-5510.37613962,0.0001926,2]
[362265699,1748129440700,-11360.32408322,0.0001926,2]
[362265700,1748129440710,-420.0,0.0001926,2]
[362265701,1748129440720,-420.0,0.0001926,2]
[362265702,1748129440730,-420.0,0.0001926,2]
[362265703,1748129440739,-420.0,0.0001926,2]
[362265704,1748129440750,-420.0,0.0001926,2]
[362265705,1748129440759,-420.0,0.0001926,2]
[362265706,1748129440769,-420.0,0.0001926,2]
[362265707,1748129440780,-873.19,0.0001926,2]
[362265708,1748129440790,-540.73113365,0.0001926,2]
[362265709,1748129440799,-420.0,0.0001926,2]
[362265710,1748129440810,-496.96,0.0001926,2]
[362265711,1748129440819,-979.2,0.0001926,2]
[362265712,1748129440828,-422.96,0.0001926,2]
[362265713,1748129440838,-420.0,0.0001926,2]
[362265714,1748129440848,-420.0,0.0001926,2]
[362265715,1748129440859,-420.0,0.0001926,2]
[362265716,1748129440869,-420.0,0.0001926,2]
[362265717,1748129440878,-420.0,0.0001926,2]
[362265718,1748129440891,-484.49,0.0001926,2]
[362265719,1748129440902,-420.0,0.0001926,2]
[362265720,1748129440912,-420.0,0.0001926,2]
[362265721,1748129440922,-420.0,0.0001926,2]
[362265722,1748129440932,-2495.14,0.0001926,2]
[362265723,1748129440942,-420.0,0.0001926,2]
[362265724,1748129440951,-1509.89,0.0001926,2]
[362265725,1748129440962,-420.0,0.0001926,2]
[362265726,1748129440971,-420.0,0.0001926,2]
[362265727,1748129440981,-420.0,0.0001926,2]
[362265728,1748129440990,-813.08,0.0001926,2]
[362265729,1748129441000,-1005.79,0.0001926,2]
[362265730,1748129441009,-420.0,0.0001926,2]
[362265731,1748129441018,-420.0,0.0001926,2]
[362265732,1748129441027,-420.0,0.0001926,2]
[362265733,1748129441036,-696.33,0.0001926,2]
[362265734,1748129441046,-1228.51,0.0001926,2]
[362265735,1748129441055,-715.94,0.0001926,2]
[362265736,1748129441065,-420.0,0.0001926,2]
[362265737,1748129441074,-547.09,0.0001926,2]
[362265738,1748129441084,-1306.55,0.0001926,2]
[362265739,1748129441094,-180.81669999,0.0001926,2]
[362265740,1748129441103,-539.64187071,0.0001926,2]
[362265741,1748129441113,-2409.8,0.0001926,2]
[362265742,1748129441122,-420.0,0.0001926,2]
[362265743,1748129441132,-1586.35,0.0001926,2]
[362265744,1748129441141,-420.0,0.0001926,2]
[362265745,1748129441151,-1309.0,0.0001926,2]
[362265746,1748129441161,-1181.141,0.0001926,2]
[362265747,1748129441171,-2696.94239321,0.00019266,2]
[362265748,1748129441180,-500.0,0.00019273,2]
[362265749,1748129441190,-500.0,0.00019273,2]
[362265750,1748129441200,-500.0,0.00019273,2]
[362265751,1748129441210,-500.0,0.00019273,2]
[362265752,1748129441219,-500.0,0.00019286,2]
[362265753,1748129441228,-500.0,0.00019286,2]
[362265754,1748129441237,-436.52,0.00019287,2]
[362265755,1748129441246,-420.0,0.00019287,2]
[362265756,1748129441256,-177.62,0.00019287,2]
[362265757,1748129441266,-31400.36,0.00019287,2]
[362265758,1748129441276,-420.0,0.00019287,2]
[362265759,1748129441286,-420.0,0.00019287,2]
[362265760,1748129441296,-420.0,0.00019287,2]
[362265761,1748129441305,-420.0,0.00019287,2]
[362265762,1748129441315,-420.0,0.00019287,2]
[362265763,1748129441324,-420.0,0.00019287,2]
[362265764,1748129441334,-873.19,0.00019287,2]
[362265765,1748129441344,-420.0,0.00019287,2]
[362265766,1748129441354,-979.2,0.00019287,2]
[362265767,1748129441363,-422.96,0.00019287,2]
[362265768,1748129441373,-420.0,0.00019287,2]
[362265769,1748129441383,-420.0,0.00019287,2]
[362265770,1748129441392,-420.0,0.00019287,2]
[362265771,1748129441402,-420.0,0.00019287,2]
[362265772,1748129441411,-420.0,0.00019287,2]
[362265773,1748129441420,-484.49,0.00019287,2]
[362265774,1748129441430,-420.0,0.00019287,2]
[362265775,1748129441439,-420.0,0.00019287,2]
[362265776,1748129441449,-420.0,0.00019287,2]
[362265777,1748129441458,-2495.14,0.00019287,2]
[362265778,1748129441468,-420.0,0.00019287,2]
[362265779,1748129441478,-1509.89,0.00019287,2]
[362265780,1748129441487,-420.0,0.00019287,2]
[362265781,1748129441497,-429.45783494,0.00019287,2]
[362265782,1748129441506,-420.0,0.00019287,2]
[362265783,1748129441516,-813.08,0.00019287,2]
[362265784,1748129441525,-1005.79,0.00019287,2]
[362265785,1748129441535,-420.0,0.00019287,2]
[362265786,1748129441544,-420.0,0.00019287,2]
[362265787,1748129441554,-420.0,0.00019287,2]
[362265788,1748129441564,-1228.51,0.00019287,2]
[362265789,1748129441573,-696.33,0.00019287,2]
[362265790,1748129441582,-715.94,0.00019287,2]
[362265791,1748129441593,-420.0,0.00019287,2]
[362265792,1748129441603,-1306.55,0.00019287,2]
[362265793,1748129441612,-2409.8,0.00019287,2]
[362265794,1748129441621,-420.0,0.00019287,2]
[362265795,1748129441631,-1586.35,0.00019287,2]
[362265796,1748129441640,-420.0,0.00019287,2]
[362265797,1748129441650,-228.73397398,0.00019289,2]
[362265798,1748129441659,-170.66988584,0.00019308,2]
[362265799,1748129441668,-420.0,0.00019315,2]
[362265800,1748129441678,-31400.36,0.00019315,2]
[362265801,1748129441688,-328.2,0.00019315,2]
[362265802,1748129441697,-420.0,0.00019315,2]
[362265803,1748129441706,-420.0,0.00019315,2]
[362265804,1748129441716,-420.0,0.00019315,2]
[362265805,1748129441725,-420.0,0.00019315,2]
[362265806,1748129441735,-420.0,0.00019315,2]
[362265807,1748129441746,-873.19,0.00019315,2]
[362265808,1748129441758,-420.0,0.00019315,2]
[362265809,1748129441768,-979.2,0.00019315,2]
[362265810,1748129441777,-422.96,0.00019315,2]
[362265811,1748129441787,-276.62,0.00019315,2]
[362265812,1748129441796,-420.0,0.00019315,2]
[362265813,1748129441805,-420.0,0.00019315,2]
[362265814,1748129441814,-420.0,0.00019315,2]
[362265815,1748129441823,-420.0,0.00019315,2]
[362265816,1748129441832,-484.49,0.00019315,2]
[362265817,1748129441842,-420.0,0.00019315,2]
[362265818,1748129441851,-396.46,0.00019315,2]
[362265819,1748129441860,-415.08,0.00019315,2]
[362265820,1748129441870,-2495.14,0.00019315,2]
[362265821,1748129441879,-420.0,0.00019315,2]
[362265822,1748129441892,-1509.89,0.00019315,2]
[362265823,1748129441901,-420.0,0.00019315,2]
[362265824,1748129441911,-420.0,0.00019315,2]
[362265825,1748129441920,-813.08,0.00019315,2]
[362265826,1748129441929,-1005.79,0.00019315,2]
[362265827,1748129441939,-420.0,0.00019315,2]